bitfinex/quotes_BTCUSD_20250508
["timestamp","ask_amount","ask_price","bid_price","bid_amount"]
[1746742349617,0.889941,102490.0,102480.0,0.58999069]
[1746742349618,0.002,102490.0,102480.0,0.58999069]
[1746742349793,0.00248137,102490.0,102480.0,1.05790941]
[1746742349991,0.02199403,102490.0,102480.0,1.05790941]
[1746742350172,0.03175069,102490.0,102480.0,1.05790941]
[1746742350640,0.04150726,102490.0,102480.0,1.05790941]
[1746742350841,0.03175031,102490.0,102480.0,1.05790941]
[1746742351042,0.2172573,102490.0,102480.0,0.58295936]
[1746742351242,0.2172573,102490.0,102480.0,0.42231939]
[1746742351844,0.2172573,102490.0,102480.0,0.22715936]
[1746742352053,0.20750073,102490.0,102480.0,0.22715936]
[1746742352251,0.6949085,102490.0,102480.0,0.001]
[1746742352453,0.71371756,102490.0,102480.0,0.002]
[1746742352656,0.70459611,102490.0,102480.0,0.002]
[1746742352857,0.3158462,102490.0,102480.0,0.4330772]
[1746742353062,0.02979487,102490.0,102480.0,0.43307729]
[1746742353416,0.03855191,102490.0,102480.0,0.46135005]
[1746742353641,0.02211575,102490.0,102480.0,0.45159262]
[1746742353853,0.0066029,102490.0,102480.0,0.70330931]
[1746742354052,0.0016029,102490.0,102480.0,0.79221539]
[1746742354213,0.01735928,102490.0,102480.0,0.79321539]
[1746742354414,0.01835928,102490.0,102480.0,0.79521539]
[1746742354612,0.02211585,102490.0,102480.0,0.79421539]
[1746742354811,0.01235928,102490.0,102480.0,0.79421539]
[1746742355015,0.02211585,102490.0,102480.0,0.79421539]
[1746742355484,0.01235918,102490.0,102480.0,0.79421539]
[1746742355610,0.22439254,102500.0,102490.0,0.21465478]
[1746742355809,0.32505946,102500.0,102490.0,0.45071505]
[1746742356414,0.31530375,102500.0,102490.0,0.20504227]
[1746742356634,0.31530375,102500.0,102490.0,0.2458176]
[1746742356835,0.21350291,102510.0,102490.0,0.44095839]
[1746742357037,0.01175533,102500.0,102490.0,0.25181207]
[1746742357233,0.03126685,102500.0,102490.0,0.47797152]
[1746742357436,0.003,102500.0,102490.0,0.4877279]
[1746742357636,0.003,102500.0,102490.0,0.69666854]
[1746742357843,0.001,102500.0,102490.0,0.69566854]
[1746742358171,0.22538909,102500.0,102490.0,0.57804218]
[1746742358373,0.21563366,102500.0,102490.0,0.07974425]
[1746742358577,0.21563366,102500.0,102490.0,0.22630361]
[1746742358752,0.21763366,102500.0,102490.0,0.22730361]
[1746742358959,0.21763366,102500.0,102490.0,0.44195839]
[1746742359135,0.21763309,102500.0,102490.0,0.45171496]
[1746742359409,0.2273889,102500.0,102490.0,0.46147134]
[1746742359724,0.23714499,102500.0,102490.0,0.04019044]
[1746742359902,0.22738956,102500.0,102490.0,0.10064124]
[1746742360118,0.22738956,102500.0,102490.0,0.29578203]
[1746742360317,0.31830077,102500.0,102490.0,0.0908842]
[1746742360642,0.33460077,102500.0,102490.0,0.0908842]
[1746742361643,0.31830077,102500.0,102490.0,0.10064124]
[1746742361985,0.30854496,102500.0,102490.0,0.53364955]
[1746742362111,0.30854496,102500.0,102490.0,0.33039564]
[1746742362306,0.30854496,102500.0,102490.0,0.556555]
[1746742362644,0.20787804,102500.0,102490.0,0.56631157]
[1746742362845,0.20787804,102500.0,102490.0,0.33214356]
[1746742363077,0.01275524,102500.0,102490.0,0.46667033]
[1746742363237,0.03226638,102500.0,102490.0,0.46667033]
[1746742363433,0.04202209,102500.0,102490.0,0.46667033]
[1746742363640,0.02251076,102500.0,102490.0,0.46667033]
[1746742364061,0.01275524,102500.0,102490.0,0.48197033]
[1746742364287,0.003,102500.0,102490.0,0.82197033]
[1746742364891,0.21763271,102500.0,102490.0,0.78715729]
[1746742365137,0.003,102500.0,102490.0,1.20667033]
[1746742365368,0.003,102500.0,102490.0,1.22197033]
[1746742366177,0.001,102500.0,102490.0,1.22097033]
[1746742366399,0.002,102500.0,102490.0,1.22297033]
[1746742366621,0.001,102500.0,102490.0,1.22297033]
[1746742367099,0.002,102500.0,102490.0,1.22497033]
[1746742368194,0.01175533,102500.0,102490.0,1.22497033]
[1746742368420,0.01175533,102500.0,102490.0,1.20967033]
[1746742368654,0.2263888,102500.0,102490.0,0.78481395]
[1746742368872,0.002,102500.0,102490.0,0.82677033]
[1746742369533,0.002,102500.0,102490.0,1.50810933]
[1746742369975,0.002,102500.0,102490.0,1.83402033]
[1746742370204,0.002,102500.0,102490.0,1.93468725]
[1746742370429,0.002,102510.0,102500.0,0.82314845]
[1746742370718,0.002,102510.0,102500.0,1.70773073]
[1746742370964,0.02150515,102530.0,102520.0,0.2408453]
[1746742370965,0.002,102530.0,102520.0,0.2408453]
[1746742371198,0.002,102530.0,102520.0,0.46700466]
[1746742372062,0.02150505,102530.0,102520.0,0.46700466]
[1746742372267,0.02150486,102530.0,102520.0,0.50606668]
[1746742372472,0.002,102530.0,102520.0,0.50606668]
[1746742372677,0.002,102530.0,102520.0,0.86216668]
[1746742372887,0.002,102530.0,102520.0,1.06284622]
[1746742373091,0.006,102530.0,102520.0,0.86316668]
[1746742373912,0.005,102530.0,102520.0,0.86316668]
[1746742374091,0.006,102530.0,102520.0,0.86616668]
[1746742374352,0.003,102530.0,102520.0,0.86516668]
[1746742374547,0.004,102530.0,102520.0,0.86916668]
[1746742374827,0.01375248,102530.0,102520.0,0.86916668]
[1746742375052,0.01375248,102530.0,102520.0,1.26916668]
[1746742375283,0.21857066,102530.0,102520.0,0.38606202]
[1746742375501,0.35123758,102530.0,102520.0,0.04606202]
[1746742375947,0.21459121,102520.0,102510.0,0.45194529]
[1746742376164,0.22434483,102520.0,102510.0,0.22436739]
[1746742376389,0.23409892,102520.0,102510.0,0.23412196]
[1746742376629,0.24385282,102520.0,102510.0,0.50911127]
[1746742376848,0.24385368,102520.0,102510.0,0.47984737]
[1746742377539,0.24385368,102520.0,102510.0,0.49160194]
[1746742377969,0.24385368,102520.0,102510.0,0.83160194]
[1746742378189,0.00176604,102530.0,102520.0,0.54483797]
[1746742378413,0.00176604,102530.0,102520.0,0.80606262]
[1746742378641,0.19716004,102550.0,102540.0,0.20479793]
[1746742378865,0.3075783,102550.0,102540.0,0.43091525]
[1746742379088,0.3075783,102550.0,102540.0,0.34]
[1746742379089,0.31732935,102550.0,102540.0,0.34]
[1746742379549,0.20691138,102550.0,102540.0,0.54479793]
[1746742379771,0.21666243,102550.0,102540.0,0.54479802]
[1746742379987,0.21680686,102550.0,102540.0,0.54479812]
[1746742380189,0.22180686,102550.0,102540.0,0.54579812]
[1746742380373,0.0168952,102550.0,102540.0,0.79141963]
[1746742380580,0.03639654,102550.0,102540.0,0.81092316]
[1746742380810,0.04614769,102550.0,102540.0,0.81092316]
[1746742381032,0.25092584,102550.0,102540.0,0.66166989]
[1746742381254,0.00714443,102550.0,102540.0,0.48702316]
[1746742381482,0.00714443,102550.0,102540.0,0.72864048]
[1746742381734,0.00714443,102550.0,102540.0,1.36914348]
[1746742381957,0.00714443,102550.0,102540.0,1.52008726]
[1746742381958,0.01214443,102550.0,102540.0,1.52008726]
[1746742382245,0.005,102550.0,102540.0,1.52008726]
[1746742382477,0.002,102570.0,102560.0,0.24035781]
[1746742382696,0.002,102570.0,102560.0,1.31822569]
[1746742382931,0.002,102590.0,102580.0,0.22421408]
[1746742383157,0.002,102590.0,102580.0,0.81253294]
[1746742383158,0.00214432,102590.0,102580.0,0.81253294]
[1746742383415,0.21658892,102590.0,102580.0,0.86957781]
[1746742383647,0.23208949,102590.0,102580.0,0.0458122]
[1746742383869,0.43007273,102590.0,102580.0,0.0458122]
[1746742384092,0.2204977,102590.0,102580.0,0.06530888]
[1746742384344,0.23024428,102590.0,102580.0,0.08227451]
[1746742384584,0.22421408,102580.0,102570.0,0.84965469]
[1746742384814,0.00605253,102590.0,102580.0,0.22421408]
[1746742385050,0.00214432,102590.0,102580.0,0.86913075]
[1746742385270,0.23908351,102590.0,102580.0,0.35074839]
[1746742385495,0.22933683,102590.0,102580.0,0.35074848]
[1746742385740,0.23333683,102590.0,102580.0,0.38150993]
[1746742385997,0.34005679,102590.0,102580.0,0.38150993]
[1746742386223,0.35525679,102590.0,102580.0,0.04150993]
[1746742386667,0.35525679,102590.0,102580.0,0.57064068]
[1746742386668,0.018891,102590.0,102580.0,0.57064068]
[1746742386893,0.23333598,102590.0,102580.0,0.25597638]
[1746742387111,0.25283095,102590.0,102580.0,0.27547249]
[1746742387334,0.23333598,102590.0,102580.0,0.28522031]
[1746742387572,0.03838521,102590.0,102580.0,0.27547249]
[1746742387797,0.3242567,102590.0,102580.0,0.04150993]
[1746742388018,0.3400567,102590.0,102580.0,0.04150993]
[1746742388246,0.3242567,102590.0,102580.0,0.04150993]
[1746742388876,0.02863853,102590.0,102580.0,0.900788]
[1746742389084,0.23333664,102590.0,102580.0,0.38150993]
[1746742389232,0.3242566,102590.0,102580.0,0.38150993]
[1746742389656,0.22358968,102590.0,102580.0,0.59597619]
[1746742389952,0.23333721,102590.0,102580.0,0.59597619]
[1746742390136,0.22358968,102590.0,102580.0,0.61547249]
[1746742390533,0.23333588,102590.0,102580.0,0.60572458]
[1746742390745,0.00914432,102590.0,102580.0,0.93003212]
[1746742390925,0.00914432,102590.0,102580.0,0.94543212]
[1746742391125,0.02863815,102590.0,102580.0,0.94543212]
[1746742391347,0.01889109,102590.0,102580.0,0.64062031]
[1746742391558,0.02863805,102590.0,102580.0,0.97250744]
[1746742391781,0.0383852,102590.0,102580.0,0.97250744]
[1746742392217,0.23333654,102590.0,102580.0,0.38150993]
[1746742392438,0.23742977,102590.0,102580.0,0.38150993]
[1746742392658,0.34334973,102590.0,102580.0,0.16237123]
[1746742392882,0.01949763,102570.0,102560.0,1.02368853]
[1746742393096,0.22834372,102570.0,102560.0,0.93461881]
[1746742393307,0.03335494,102570.0,102560.0,1.00838862]
[1746742393534,0.22834372,102570.0,102560.0,0.20475709]
[1746742393770,0.23403045,102550.0,102540.0,0.0910721]
[1746742394020,0.21857503,102550.0,102540.0,0.21655012]
[1746742394247,0.21857503,102550.0,102540.0,0.23605403]
[1746742394477,0.00404583,102550.0,102540.0,0.24580565]
[1746742394719,0.00404583,102550.0,102540.0,0.55061746]
[1746742394945,0.00504583,102550.0,102540.0,1.01614761]
[1746742395178,0.03429813,102550.0,102540.0,0.71005188]
[1746742395403,0.02554708,102550.0,102540.0,0.71305188]
[1746742395620,0.00604583,102550.0,102540.0,1.13373061]
[1746742395835,0.00604583,102550.0,102540.0,1.38901261]
[1746742396048,0.23056823,102580.0,102560.0,0.21450809]
[1746742396281,0.2144866,102570.0,102560.0,0.2206037]
[1746742396482,0.33123515,102580.0,102570.0,0.21448736]
[1746742396706,0.32488316,102580.0,102570.0,0.23033183]
[1746742396912,0.33463164,102580.0,102570.0,0.00609561]
[1746742397126,0.01949639,102580.0,102570.0,0.23033136]
[1746742397363,0.01174725,102590.0,102580.0,0.22421427]
[1746742397620,0.00974772,102580.0,102570.0,0.57033145]
[1746742397864,0.00974772,102580.0,102570.0,0.5800796]
[1746742398081,0.22838501,102580.0,102570.0,0.35516154]
[1746742398297,0.22163691,102580.0,102570.0,0.35616154]
[1746742398516,0.22163691,102580.0,102570.0,0.56089956]
[1746742398735,0.22163691,102580.0,102570.0,0.56089966]
[1746742398949,0.01691828,102580.0,102570.0,0.87614274]
[1746742399172,0.23338482,102580.0,102570.0,0.34709499]
[1746742399373,0.23338482,102580.0,102570.0,0.5713314]
[1746742399581,0.02866657,102580.0,102570.0,0.58108017]
[1746742399796,0.25288046,102580.0,102570.0,0.58108036]
[1746742399996,0.00605021,102580.0,102570.0,0.59082913]
[1746742400216,0.23026429,102580.0,102570.0,0.5518332]
[1746742400443,0.24001277,102580.0,102570.0,0.57133131]
[1746742400642,0.23026429,102580.0,102570.0,0.57133131]
[1746742400913,0.22421408,102580.0,102570.0,0.34709499]
[1746742401116,0.23076626,102580.0,102570.0,0.35684442]
[1746742401324,0.23076626,102580.0,102570.0,0.36659376]
[1746742401541,0.23076626,102580.0,102570.0,0.58041312]
[1746742401747,0.32168508,102580.0,102570.0,0.36592585]
[1746742401953,0.32168508,102580.0,102570.0,0.37567519]
[1746742402171,0.31193669,102580.0,102570.0,0.35617642]
[1746742402379,0.34197754,102580.0,102570.0,0.01617642]
[1746742402595,0.34197754,102580.0,102570.0,0.00709499]
[1746742403620,0.34197754,102580.0,102570.0,0.22158235]
[1746742403621,0.12671521,102580.0,102570.0,0.22158235]
[1746742403822,0.12671521,102580.0,102570.0,0.2118332]
[1746742403823,0.33143299,102580.0,102570.0,0.2118332]
[1746742404019,0.32168498,102580.0,102570.0,0.01684442]
[1746742404236,0.32168498,102580.0,102570.0,0.02659376]
[1746742404436,0.32168498,102580.0,102570.0,0.00709499]
[1746742404641,0.32168498,102580.0,102570.0,0.20208377]
[1746742404863,0.32168498,102580.0,102570.0,0.00709499]
[1746742405067,0.31193669,102580.0,102570.0,0.00709499]
[1746742405472,0.31193669,102580.0,102570.0,0.20208377]
[1746742405676,0.31193669,102580.0,102570.0,0.21183311]
[1746742406624,0.31193669,102580.0,102570.0,0.00709499]
[1746742407219,0.31193669,102580.0,102570.0,0.01684433]
[1746742407446,0.32703669,102580.0,102570.0,0.00709499]
[1746742407653,0.34157754,102580.0,102570.0,0.00709499]
[1746742407825,0.31193669,102580.0,102570.0,0.21183311]
[1746742408062,0.31193669,102580.0,102570.0,0.22158235]
[1746742408270,0.32168508,102580.0,102570.0,0.24108036]
[1746742408479,0.21309509,102590.0,102570.0,0.45722884]
[1746742408697,0.01949611,102580.0,102570.0,0.46697761]
[1746742408920,0.31376201,102590.0,102570.0,0.46697761]
[1746742408921,0.00214432,102590.0,102580.0,0.55446607]
[1746742409128,0.23608417,102590.0,102580.0,0.77061588]
[1746742409335,0.22633721,102590.0,102580.0,0.55081324]
[1746742409546,0.22633721,102590.0,102580.0,0.56056153]
[1746742409765,0.03138635,102590.0,102580.0,0.58005764]
[1746742409989,0.03138635,102590.0,102580.0,0.58980546]
[1746742410218,0.03738635,102590.0,102580.0,0.58980546]
[1746742410649,0.01489128,102590.0,102580.0,0.58980546]
[1746742410876,0.03838521,102590.0,102580.0,0.59080546]
[1746742411142,0.23333664,102590.0,102580.0,0.35684347]
[1746742411358,0.22894243,102590.0,102580.0,0.34709499]
[1746742411583,0.22594243,102590.0,102580.0,0.34709499]
[1746742411801,0.01989128,102590.0,102580.0,0.57230907]
[1746742412015,0.03938568,102590.0,102580.0,0.57230907]
[1746742412898,0.04913245,102590.0,102580.0,0.57230907]
[1746742413310,0.05887989,102590.0,102580.0,0.57230907]
[1746742413519,0.04913245,102590.0,102580.0,0.57230907]
[1746742413939,0.03938511,102590.0,102580.0,0.57230907]
[1746742414144,0.04913245,102590.0,102580.0,0.57230907]
[1746742414781,0.03938511,102590.0,102580.0,0.58870907]
[1746742415179,0.04913236,102590.0,102580.0,0.58870907]
[1746742415517,0.0588797,102590.0,102580.0,0.58870907]
[1746742416316,0.03938511,102590.0,102580.0,0.58870907]
[1746742416508,0.04913236,102590.0,102580.0,0.58870907]
[1746742417476,0.03938511,102590.0,102580.0,0.64728907]
[1746742417676,0.03938511,102590.0,102580.0,0.58870907]
[1746742417841,0.02963805,102590.0,102580.0,0.58870907]
[1746742418238,0.0393852,102590.0,102580.0,0.58870907]
[1746742419083,0.01014432,102590.0,102580.0,1.79664013]
[1746742419280,0.01074478,102610.0,102600.0,0.56417038]
[1746742419503,0.01122576,102610.0,102600.0,0.88451752]
[1746742419711,0.01122595,102610.0,102600.0,0.88451752]
[1746742419892,0.01122595,102610.0,102600.0,0.89061251]
[1746742420087,0.04046161,102610.0,102600.0,0.58576537]
[1746742420360,0.01174298,102630.0,102620.0,0.22412669]
[1746742420558,0.0313739,102630.0,102620.0,0.22412669]
[1746742420817,0.04111744,102630.0,102620.0,0.22412669]
[1746742421055,0.04111744,102630.0,102620.0,0.23022168]
[1746742421285,0.23599308,102630.0,102620.0,0.21073326]
[1746742421524,0.23599308,102630.0,102620.0,0.22047766]
[1746742421728,0.23799308,102630.0,102620.0,0.23022196]
[1746742421964,0.4295814,102630.0,102620.0,0.00609499]
[1746742422870,0.35207329,102630.0,102620.0,0.00609499]
[1746742423091,0.33567329,102630.0,102620.0,0.00609499]
[1746742423775,0.0236312,102630.0,102620.0,0.22047766]
[1746742423980,0.21850599,102630.0,102620.0,0.22047766]
[1746742424194,0.21850599,102630.0,102620.0,0.23022187]
[1746742424544,0.21850599,102630.0,102620.0,0.26933372]
[1746742424965,0.33497291,102630.0,102620.0,0.04520684]
[1746742425169,0.35017291,102630.0,102620.0,0.04520684]
[1746742425549,0.33497291,102630.0,102620.0,0.04520684]
[1746742426150,0.35057291,102630.0,102620.0,0.04520684]
[1746742426348,0.33497291,102630.0,102620.0,0.04520684]
[1746742426779,0.35057291,102630.0,102620.0,0.04520684]
[1746742427189,0.33497291,102630.0,102620.0,0.04520684]
[1746742427762,0.34997291,102630.0,102620.0,0.04520684]
[1746742429970,0.57571042,102630.0,102620.0,0.04520684]
[1746742430381,0.34997291,102630.0,102620.0,0.04520684]
[1746742430555,0.57571042,102630.0,102620.0,0.04520684]
[1746742430974,0.34997291,102630.0,102620.0,0.04520684]
[1746742431174,0.57571042,102630.0,102620.0,0.04520684]
[1746742431573,0.81598878,102630.0,102620.0,0.00609499]
[1746742431794,0.22417038,102600.0,102590.0,0.21444564]
[1746742431995,0.22417038,102600.0,102590.0,0.23028663]
[1746742431996,0.02923861,102600.0,102590.0,0.23028663]
[1746742432191,0.01949212,102600.0,102590.0,0.5800335]
[1746742432396,0.23391677,102600.0,102590.0,0.22053957]
[1746742432598,0.23391677,102600.0,102590.0,0.00609393]
[1746742432599,0.21442465,102600.0,102590.0,0.00609393]
[1746742432764,0.21442465,102600.0,102590.0,0.21079223]
[1746742432958,0.32114518,102600.0,102590.0,0.00609393]
[1746742433238,0.32214518,102600.0,102590.0,0.01209393]
[1746742433441,0.11141341,102600.0,102590.0,0.22653948]
[1746742433553,0.32583796,102600.0,102590.0,0.22653948]
[1746742433752,0.31609176,102600.0,102590.0,0.01209393]
[1746742433966,0.10166692,102600.0,102590.0,0.2080447]
[1746742434193,0.001,102600.0,102590.0,0.25328616]
[1746742434392,0.0107463,102600.0,102590.0,0.25028616]
[1746742434596,0.01074611,102600.0,102590.0,0.25028616]
[1746742434887,0.02149193,102600.0,102590.0,0.25528616]
[1746742435296,0.02149183,102600.0,102590.0,0.29510023]
[1746742435544,0.03123803,102600.0,102590.0,0.29510023]
[1746742435756,0.04098442,102600.0,102590.0,0.29510023]
[1746742436043,0.03123803,102600.0,102590.0,0.29510023]
[1746742436391,0.002,102600.0,102590.0,0.63510023]
[1746742436591,0.02149174,102600.0,102590.0,0.63510023]
[1746742437187,0.01174573,102600.0,102590.0,0.63510023]
[1746742437387,0.02149165,102600.0,102590.0,0.65080023]
[1746742437622,0.02149174,102600.0,102590.0,0.70938023]
[1746742437811,0.04098443,102600.0,102590.0,0.63510023]
[1746742438012,0.03123794,102600.0,102590.0,0.63510023]
[1746742438216,0.02149174,102600.0,102590.0,0.63510023]
[1746742438394,0.03123766,102600.0,102590.0,0.63510023]
[1746742438601,0.02149155,102600.0,102590.0,0.63510023]
[1746742438992,0.03123766,102600.0,102590.0,0.63510023]
[1746742439397,0.04098405,102600.0,102590.0,0.61910023]
[1746742439601,0.01174573,102600.0,102590.0,0.63480023]
[1746742439796,0.01174592,102600.0,102590.0,0.64990023]
[1746742440021,0.02149174,102600.0,102590.0,0.64990023]
[1746742440196,0.002,102600.0,102590.0,0.87563774]
[1746742440428,0.002,102600.0,102590.0,0.88474199]
[1746742441051,0.01174573,102600.0,102590.0,0.88474199]
[1746742441298,0.002,102600.0,102590.0,0.88474199]
[1746742442398,0.002,102600.0,102590.0,1.04398891]
[1746742442608,0.002,102600.0,102590.0,1.44627891]
[1746742442842,0.002,102600.0,102590.0,1.19412791]
[1746742443332,0.002,102600.0,102590.0,0.98540891]
[1746742443997,0.002,102600.0,102590.0,1.38540891]
[1746742444779,0.002,102600.0,102590.0,2.13116991]
[1746742445005,0.002,102600.0,102590.0,2.17500547]
[1746742445445,0.01948794,102620.0,102610.0,0.56414853]
[1746742445917,0.97707192,102630.0,102620.0,0.22412688]
[1746742445918,0.9868141,102630.0,102620.0,0.22412688]
[1746742446142,1.08748102,102630.0,102620.0,0.23022081]
[1746742446366,1.08748102,102630.0,102620.0,0.20098771]
[1746742446625,0.80168228,102630.0,102620.0,0.23022043]
[1746742446864,1.01265764,102630.0,102620.0,0.22958104]
[1746742447088,1.10903767,102630.0,102620.0,0.01519818]
[1746742447545,1.11203767,102630.0,102620.0,1.01519818]
[1746742447966,1.03452956,102630.0,102620.0,1.01519818]
[1746742448229,0.34172956,102630.0,102620.0,1.01519818]
[1746742448470,0.34472956,102630.0,102620.0,1.01519818]
[1746742450375,0.34472956,102630.0,102620.0,1.02203347]
[1746742453339,0.57046707,102630.0,102620.0,1.02203347]
[1746742453561,0.58500792,102630.0,102620.0,1.01519818]
[1746742454013,0.35927041,102630.0,102620.0,1.01519818]
[1746742454440,0.35927041,102630.0,102620.0,1.01519791]
[1746742454859,0.58500792,102630.0,102620.0,1.01519791]
[1746742455402,0.35927041,102630.0,102620.0,1.01519791]
[1746742456371,0.58500792,102630.0,102620.0,1.01519791]
[1746742456662,0.35927041,102630.0,102620.0,1.01519791]
[1746742457015,0.58500792,102630.0,102620.0,1.01519791]
[1746742457649,0.35927041,102630.0,102620.0,1.01519791]
[1746742458207,0.58500792,102630.0,102620.0,1.01519791]
[1746742459336,0.35927041,102630.0,102620.0,1.01519791]
[1746742460346,0.58500792,102630.0,102620.0,1.01519791]
[1746742461083,0.35927041,102630.0,102620.0,1.01519791]
[1746742461298,0.35927041,102630.0,102620.0,1.00910425]
[1746742462018,0.35927041,102630.0,102620.0,1.0]
[1746742462192,0.35927041,102630.0,102620.0,1.00609393]
[1746742464109,0.35927041,102630.0,102620.0,1.01521604]
[1746742465458,0.58500792,102630.0,102620.0,1.01521604]
[1746742465662,0.35927041,102630.0,102620.0,1.01521604]
[1746742467414,0.34407041,102630.0,102620.0,1.01521604]
[1746742469196,0.31342956,102630.0,102620.0,1.01521604]
[1746742469954,0.32952956,102630.0,102620.0,1.02205948]
[1746742470165,0.34407041,102630.0,102620.0,1.02205948]
[1746742470335,0.35987041,102630.0,102620.0,1.02205948]
[1746742470712,0.35987041,102630.0,102620.0,1.01521604]
[1746742471125,0.3573771,102630.0,102620.0,1.01521604]
[1746742471662,0.58311461,102630.0,102620.0,1.01521604]
[1746742477612,0.3573771,102630.0,102620.0,1.01521604]
[1746742477820,0.58311461,102630.0,102620.0,1.01521604]
[1746742479558,0.58311461,102630.0,102620.0,1.0]
[1746742480198,0.58311461,102630.0,102620.0,1.00609423]
[1746742481106,0.58311461,102630.0,102620.0,0.99199423]
[1746742481588,0.3254771,102630.0,102620.0,0.99199423]
[1746742482025,0.3254771,102630.0,102620.0,1.00112261]
[1746742483047,0.3254771,102630.0,102620.0,1.01662261]
[1746742483248,0.31093625,102630.0,102620.0,1.03856936]
[1746742485099,0.31093625,102630.0,102620.0,1.02346936]
[1746742485317,0.31093625,102630.0,102620.0,1.00796936]
[1746742486226,0.30793625,102630.0,102620.0,1.00796936]
[1746742486918,0.30493625,102630.0,102620.0,1.00796936]
[1746742487788,0.30493625,102630.0,102620.0,1.00112261]
[1746742488002,0.3194771,102630.0,102620.0,1.00112261]
[1746742488268,0.3346771,102630.0,102620.0,1.00112261]
[1746742490050,0.57661461,102630.0,102620.0,1.00112261]
[1746742490454,0.32442333,102630.0,102620.0,1.03342261]
[1746742490704,0.31467998,102630.0,102620.0,1.00112261]
[1746742490894,0.31467998,102630.0,102620.0,1.01712261]
[1746742491659,0.31467998,102630.0,102620.0,1.21263269]
[1746742491848,0.31467998,102630.0,102620.0,1.00799423]
[1746742492015,0.31467998,102630.0,102620.0,0.99199423]
[1746742493024,0.31467998,102630.0,102620.0,0.99883834]
[1746742493816,0.31467998,102630.0,102620.0,1.00796262]
[1746742494422,0.31467998,102630.0,102620.0,1.2028564]
[1746742494638,0.31467998,102630.0,102620.0,1.23794548]
[1746742494828,0.31467998,102630.0,102620.0,1.02356262]
[1746742495132,0.12015391,102630.0,102620.0,1.26338931]
[1746742495332,0.33451531,102630.0,102620.0,1.25364529]
[1746742497227,0.33451531,102630.0,102620.0,1.24390099]
[1746742497440,0.31502889,102630.0,102620.0,1.02356262]
[1746742497669,0.30528535,102630.0,102620.0,1.00796262]
[1746742497859,0.32128535,102630.0,102620.0,1.00796262]
[1746742498255,0.3358262,102630.0,102620.0,1.00111851]
[1746742498467,0.3358262,102630.0,102620.0,1.04511937]
[1746742499515,0.57776371,102630.0,102620.0,1.04511937]
[1746742499948,0.56156371,102630.0,102620.0,1.04511937]
[1746742500178,0.3198262,102630.0,102620.0,1.03902514]
[1746742500984,0.3198262,102630.0,102620.0,1.04511858]
[1746742501198,0.3198262,102630.0,102620.0,1.00111772]
[1746742502705,0.11041027,102630.0,102620.0,1.48318192]
[1746742502917,0.3345155,102630.0,102620.0,1.49002297]
[1746742503141,0.3345155,102630.0,102620.0,1.48027895]
[1746742503380,0.31502908,102630.0,102620.0,1.00795858]
[1746742504342,0.31502908,102630.0,102620.0,1.45343446]
[1746742504579,0.31502908,102630.0,102620.0,1.47917876]
[1746742505028,0.29554171,102630.0,102620.0,1.26479609]
[1746742505451,0.29554171,102630.0,102620.0,1.47917876]
[1746742505670,0.29554171,102630.0,102620.0,1.46943446]
[1746742506327,0.29554171,102630.0,102620.0,1.26479609]
[1746742506581,0.30528535,102630.0,102620.0,1.46943446]
[1746742506794,0.30528535,102630.0,102620.0,1.03905858]
[1746742507010,0.30528535,102630.0,102620.0,1.26479609]
[1746742507434,0.30528535,102630.0,102620.0,1.02305858]
[1746742507875,0.30528535,102630.0,102620.0,1.00795858]
[1746742508090,0.30528535,102630.0,102620.0,1.02345858]
[1746742509112,0.30528535,102630.0,102620.0,1.00795858]
[1746742510015,0.30528535,102630.0,102620.0,1.05194393]
[1746742510856,0.32088535,102630.0,102620.0,1.05194393]
[1746742511244,0.32088535,102630.0,102620.0,1.04510307]
[1746742511586,0.30528535,102630.0,102620.0,1.04510307]
[1746742513643,0.30528535,102630.0,102620.0,1.00111772]
[1746742513858,0.30528535,102630.0,102620.0,1.00311772]
[1746742514306,0.30528535,102630.0,102620.0,1.0284624]
[1746742514531,0.30528535,102630.0,102620.0,1.01871772]
[1746742514772,0.30528535,102630.0,102620.0,1.2239763]
[1746742514994,0.30528535,102630.0,102620.0,1.47605802]
[1746742515223,0.12015391,102630.0,102620.0,1.48580204]
[1746742515456,0.12989688,102630.0,102620.0,1.48880204]
[1746742515900,0.00974193,102640.0,102630.0,0.25550504]
[1746742516127,0.002,102650.0,102640.0,0.60522543]
[1746742516337,0.002,102650.0,102640.0,0.83705638]
[1746742516552,0.02148225,102650.0,102640.0,0.83705638]
[1746742516759,0.0312238,102650.0,102640.0,0.83705638]
[1746742516970,0.23580236,102650.0,102640.0,0.37749344]
[1746742517178,0.21632011,102650.0,102640.0,0.81757185]
[1746742517356,0.21632011,102650.0,102640.0,0.58609193]
[1746742517581,0.21632011,102650.0,102640.0,0.81757194]
[1746742517795,0.002,102650.0,102640.0,0.83705637]
[1746742518005,0.01174098,102650.0,102640.0,0.84105637]
[1746742518623,0.01174098,102650.0,102640.0,0.84505637]
[1746742519500,0.002,102650.0,102640.0,0.84505637]
[1746742519930,0.01174117,102650.0,102640.0,0.84505637]
[1746742520363,0.01174108,102650.0,102640.0,0.84505637]
[1746742520579,0.01174108,102650.0,102640.0,0.88899831]
[1746742520999,0.002,102650.0,102640.0,0.88899831]
[1746742521651,0.0019113,102650.0,102640.0,0.88899831]
[1746742521869,0.0019113,102650.0,102640.0,1.28899831]
[1746742522081,0.0019113,102650.0,102640.0,1.29581632]
[1746742522298,0.0019113,102650.0,102640.0,1.07007881]
[1746742522505,0.0019113,102650.0,102640.0,1.29581632]
[1746742523817,0.01165228,102650.0,102640.0,1.29581632]
[1746742524027,0.0019113,102650.0,102640.0,1.29581632]
[1746742524450,0.01165238,102650.0,102640.0,1.29581632]
[1746742524659,0.0019113,102650.0,102640.0,1.29581632]
[1746742526870,0.02922143,102660.0,102650.0,0.56406119]
[1746742527151,0.02922143,102660.0,102650.0,0.82709214]
[1746742527367,0.03896222,102660.0,102650.0,0.82709214]
[1746742527579,0.04870311,102660.0,102650.0,0.82709233]
[1746742527790,0.01948073,102660.0,102650.0,0.84365151]
[1746742528015,0.01948073,102660.0,102650.0,0.84665151]
[1746742528228,0.02922143,102660.0,102650.0,0.620914]
[1746742528435,0.22403927,102660.0,102650.0,0.83691034]
[1746742528641,0.02922143,102660.0,102650.0,0.84665151]
[1746742528853,0.03896222,102660.0,102650.0,0.8398335]
[1746742529064,0.24352095,102660.0,102650.0,0.83009233]
[1746742529239,0.24352095,102660.0,102650.0,0.82111034]
[1746742529951,0.23378073,102660.0,102650.0,0.82111034]
[1746742530148,0.22404022,102660.0,102650.0,0.82111034]
[1746742530538,0.01948149,102660.0,102650.0,0.82758439]
[1746742530759,0.01948149,102660.0,102650.0,0.85322556]
[1746742531487,0.01948149,102660.0,102650.0,0.84348439]
[1746742531691,0.01948149,102660.0,102650.0,0.84348429]
[1746742531837,0.01948111,102660.0,102650.0,0.84348429]
[1746742532221,0.01948111,102660.0,102650.0,0.50675151]
[1746742532436,0.0292219,102660.0,102650.0,0.50675151]
[1746742532647,0.23378063,102660.0,102650.0,0.49019233]
[1746742532836,0.0292219,102660.0,102650.0,0.4999335]